fUSD/lending_fUSD_20251224
["ID","MTS","AMOUNT","RATE_DAILY","PERIOD"]
[399631931,1766575842920,-1353.52777197,0.00016438,2]
[399631932,1766575842931,-1353.52777197,0.00016438,2]
[399631933,1766575842941,-1353.52777197,0.00016438,2]
[399631934,1766575842951,-1353.52777197,0.00016438,2]
[399631935,1766575842962,-1353.52777197,0.00016438,2]
[399631936,1766575842972,-1353.52777197,0.00016438,2]
[399631937,1766575842982,-1353.52777197,0.00016438,2]
[399631938,1766575842992,-1353.52777197,0.00016438,2]
[399631939,1766575843002,-1353.52777197,0.00016438,2]
[399631940,1766575843012,-1353.52777197,0.00016438,2]
[399631941,1766575843022,-1353.52777197,0.00016438,2]
[399631942,1766575843032,-1353.52777197,0.00016438,2]
[399631943,1766575843043,-1353.52777197,0.00016438,2]
[399631944,1766575843053,-1353.52777197,0.00016438,2]
[399631945,1766575843063,-1353.52777197,0.00016438,2]
[399631946,1766575843073,-1353.52777197,0.00016438,2]
[399631947,1766575843083,-1353.52777197,0.00016438,2]
[399631948,1766575843094,-500.0,0.00016438,2]
[399631949,1766575843105,-500.0,0.00016438,2]
[399631950,1766575843116,-3656.0,0.00016438,2]
[399631951,1766575843127,-801.24318658,0.00016438,2]
[399631952,1766575843137,-1092.09895844,0.00016443,7]
[399631953,1766575843147,-505.03256826,0.00016465,2]
[399631954,1766575843157,-500.0,0.00016465,2]
[399631955,1766575843167,-500.0,0.00016493,2]
[399631956,1766575843178,-150.0,0.00016501,2]
[399631957,1766575843188,-150.0,0.00016501,2]
[399631959,1766575843198,-150.0,0.00016501,2]
[399631960,1766575843208,-150.0,0.00016501,2]
[399631962,1766575843218,-928.25173543,0.00016516,2]
[399631963,1766575843229,-500.0,0.0001652,2]
[399631964,1766575843239,-150.0,0.00016533,2]
[399631965,1766575843249,-502.78081012,0.00016548,2]
[399631966,1766575843260,-1000.0,0.000166,2]
[399631967,1766575843270,-22139.72971147,0.00016601,2]
[399631968,1766575843280,-15928.09017776,0.00016601,2]
[399631969,1766575843290,-1363.31060661,0.00016604,2]
[399631970,1766575843301,-150.0,0.00016609,2]
[399631971,1766575843311,-4652.0,0.00016636,2]
[399631972,1766575843320,-433.0,0.00016642,2]
[399631973,1766575843330,-150.0,0.00016647,2]
[399631974,1766575843340,-2256.77151538,0.0001666,2]
[399631975,1766575843350,-1279.041,0.0001666,2]
[399631977,1766575843360,-186.749,0.0001666,2]
[399631979,1766575843369,-334.5472959,0.0001668,2]
[399631981,1766575843380,-543.0,0.0001668,2]
[399631983,1766575843390,-287.61899177,0.0001668,2]
[399631984,1766575843400,-1000.0,0.000167,2]
[399631986,1766575843410,-1816.57,0.00016702,2]
[399631988,1766575843421,-150.0,0.00016703,2]
[399631990,1766575843431,-164.17,0.00016712,2]
[399631992,1766575843441,-150.0,0.00016717,2]
[399631994,1766575843451,-151.0,0.00016717,2]
[399631996,1766575843462,-203.7325707,0.00016719,2]
[399631998,1766575843472,-674245.6070136,0.0001672,2]
[399632000,1766575843483,-150.0,0.00016744,2]
[399632002,1766575843493,-150.0,0.00016744,2]
[399632004,1766575843503,-150.0,0.00016744,2]
[399632006,1766575843512,-150.0,0.00016744,2]
[399632008,1766575843522,-150.0,0.0001676,2]
[399632010,1766575843532,-150.0,0.00016798,2]
[399632012,1766575843543,-296.0,0.00016804,2]
[399632014,1766575843552,-570.5676631,0.00016816,2]
[399632016,1766575843562,-500.0,0.00016816,2]
[399632018,1766575843571,-500.0,0.00016816,2]
[399632020,1766575843581,-500.0,0.00016816,2]
[399632022,1766575843593,-486.58926638,0.00016816,2]
[399632024,1766575843603,-500.0,0.00016816,2]
[399632026,1766575843612,-364.71354413,0.00016816,2]
[399632028,1766575843622,-500.0,0.00016816,2]
[399632030,1766575843631,-500.0,0.00016816,2]
[399632031,1766575843641,-500.0,0.00016816,2]
[399632032,1766575843650,-500.0,0.00016816,2]
[399632033,1766575843659,-500.0,0.00016816,2]
[399632034,1766575843668,-500.0,0.00016816,2]
[399632035,1766575843678,-500.0,0.00016816,2]
[399632036,1766575843687,-500.0,0.00016816,2]
[399632037,1766575843697,-500.0,0.00016816,2]
[399632038,1766575843707,-500.0,0.00016816,2]
[399632039,1766575843716,-2000.0,0.00016816,2]
[399632040,1766575843726,-2000.0,0.00016816,2]
[399632041,1766575843735,-2000.0,0.00016816,2]
[399632042,1766575843747,-2000.0,0.00016816,2]
[399632043,1766575843757,-2000.0,0.00016816,2]
[399632044,1766575843769,-2000.0,0.00016816,2]
[399632045,1766575843781,-2000.0,0.00016816,2]
[399632046,1766575843791,-1073.58059589,0.00016816,2]
[399632047,1766575843803,-505.45508162,0.00016816,2]
[399632048,1766575843814,-630.28190868,0.00016816,2]
[399632049,1766575843824,-200.0,0.00016863,2]
[399632050,1766575843836,-200.0,0.00016864,2]
[399632051,1766575843847,-150.0,0.00016873,2]
[399632052,1766575843856,-500.0,0.00016899,2]
[399632053,1766575843867,-500.0,0.00016899,2]
[399632054,1766575843877,-500.0,0.00016899,2]
[399632055,1766575843886,-500.0,0.00016899,2]
[399632056,1766575843897,-526.00597189,0.00016899,2]
[399632057,1766575843907,-500.0,0.00016899,2]
[399632058,1766575843917,-500.0,0.00016899,2]
[399632059,1766575843927,-390.50248371,0.000169,2]
[399632060,1766575843937,-10000.0,0.000169,2]
[399632061,1766575843947,-156.56364942,0.000169,2]
[399632062,1766575843958,-1000.0,0.000169,2]
[399632063,1766575843969,-15928.09017776,0.000169,2]
[399632064,1766575843979,-928.25173543,0.000169,2]
[399632065,1766575843989,-465.4164627,0.000169,2]
[399632066,1766575843999,-556.04491804,0.000169,2]
[399632067,1766575844009,-4257.50015401,0.000169,2]
[399632068,1766575844020,-22139.72971147,0.000169,2]
[399632069,1766575844030,-1000.0,0.00016924,2]
[399632070,1766575844040,-5888.0,0.00016965,2]
[399632071,1766575844050,-642.94,0.00016969,2]
[399632072,1766575844060,-500.0,0.00016973,2]
[399632073,1766575844070,-150.0,0.00016973,2]
[399632074,1766575844081,-1816.57,0.00016976,2]
[399632075,1766575844091,-500.0,0.00016986,2]
[399632076,1766575844104,-176.01870488,0.00016986,2]
[399632077,1766575844114,-167.10991065,0.00016986,2]
[399632078,1766575844125,-181.68141463,0.00016986,2]
[399632079,1766575844135,-257.33467835,0.00016986,2]
[399632080,1766575844146,-170.81056165,0.00016986,2]
[399632081,1766575844157,-150.0,0.00016986,2]
[399632082,1766575844167,-173.4351173,0.00016986,2]
[399632083,1766575844177,-154.0769181,0.00016986,2]
[399632084,1766575844188,-156.0209703,0.00016986,2]
[399632085,1766575844198,-286.50926641,0.00016986,2]
[399632086,1766575844208,-174.4498365,0.00016986,2]
[399632087,1766575844478,-1191.16039457,0.0001699,2]
[399632088,1766575844490,-1191.16039457,0.0001699,2]
[399632089,1766575844501,-151.0,0.00016997,2]
[399632090,1766575844512,-500.0,0.00016999,2]
[399632091,1766575844521,-500.0,0.00016999,2]
[399632092,1766575844532,-500.0,0.00016999,2]
[399632093,1766575844543,-349.26999972,0.00016999,2]
[399632094,1766575844554,-516.01929042,0.00016999,2]
[399632095,1766575844564,-500.0,0.00016999,2]
[399632096,1766575844574,-500.0,0.00016999,2]
[399632097,1766575844585,-500.0,0.00016999,2]
[399632098,1766575844595,-557.08917325,0.00016999,2]
[399632099,1766575844605,-300.0,0.00016999,2]
[399632100,1766575844614,-500.0,0.00016999,2]
[399632101,1766575844625,-516.24004951,0.00016999,2]
[399632102,1766575844635,-300.0,0.00016999,2]
[399632103,1766575844646,-451.43777448,0.00016999,2]
[399632104,1766575844655,-500.0,0.00016999,2]
[399632105,1766575844665,-500.0,0.00016999,2]
[399632106,1766575844676,-500.0,0.00016999,2]
[399632107,1766575844686,-500.0,0.00016999,2]
[399632108,1766575844697,-500.0,0.00016999,2]
[399632109,1766575844708,-294.2331637,0.00016999,2]
[399632110,1766575844719,-500.0,0.00016999,2]
[399632111,1766575844730,-500.0,0.00016999,2]
[399632112,1766575844741,-258.4625405,0.00016999,2]
[399632113,1766575844751,-308.45911544,0.00016999,2]
[399632114,1766575844764,-500.0,0.00016999,2]
[399632115,1766575844774,-500.0,0.00016999,2]
[399632116,1766575844785,-500.0,0.00016999,2]
[399632117,1766575844795,-500.0,0.00016999,2]
[399632118,1766575844806,-500.0,0.00016999,2]
[399632119,1766575844817,-500.0,0.00016999,2]
[399632120,1766575844827,-500.0,0.00016999,2]
[399632121,1766575844837,-500.0,0.00016999,2]
[399632122,1766575844847,-500.0,0.00016999,2]
[399632123,1766575844856,-300.0,0.00016999,2]
[399632124,1766575844867,-666.0,0.00016999,2]
[399632125,1766575844877,-300.0,0.00016999,2]
[399632126,1766575844888,-500.0,0.00016999,2]
[399632127,1766575844898,-500.0,0.00016999,2]
[399632128,1766575844908,-500.0,0.00016999,2]
[399632129,1766575844918,-504.00842386,0.00016999,2]
[399632130,1766575844931,-500.0,0.00016999,2]
[399632131,1766575844941,-500.0,0.00016999,2]
[399632132,1766575844951,-500.0,0.00016999,2]
[399632133,1766575844961,-530.21490798,0.00016999,2]
[399632134,1766575844971,-271.7600895,0.00016999,2]
[399632135,1766575844981,-411.98933297,0.00016999,2]
[399632136,1766575844991,-500.0,0.00016999,2]
[399632137,1766575845002,-500.0,0.00016999,2]
[399632138,1766575845012,-500.0,0.00016999,2]
[399632139,1766575845022,-500.0,0.00016999,2]
[399632140,1766575845032,-500.0,0.00016999,2]
[399632141,1766575845044,-500.0,0.00016999,2]
[399632142,1766575845054,-500.0,0.00016999,2]
[399632143,1766575845064,-515.32903938,0.00016999,2]
[399632144,1766575845075,-500.0,0.00016999,2]
[399632145,1766575845085,-500.0,0.00016999,2]
[399632146,1766575845095,-500.0,0.00016999,2]
[399632147,1766575845106,-500.0,0.00016999,2]
[399632148,1766575845116,-500.0,0.00016999,2]
[399632149,1766575845127,-500.0,0.00016999,2]
[399632150,1766575845137,-500.0,0.00016999,2]
[399632151,1766575845147,-500.0,0.00016999,2]
[399632152,1766575845158,-500.0,0.00016999,2]
[399632153,1766575845168,-500.0,0.00016999,2]
[399632154,1766575845178,-500.0,0.00016999,2]
[399632155,1766575845189,-500.0,0.00016999,2]
[399632156,1766575845201,-500.0,0.00016999,2]
[399632157,1766575845212,-500.0,0.00016999,2]
[399632158,1766575845222,-500.0,0.00016999,2]
[399632159,1766575845232,-500.0,0.00016999,2]
[399632160,1766575845243,-500.0,0.00016999,2]
[399632161,1766575845253,-500.0,0.00016999,2]
[399632162,1766575845263,-514.26068371,0.00016999,2]
[399632163,1766575845273,-500.0,0.00016999,2]
[399632164,1766575845283,-500.0,0.00016999,2]
[399632165,1766575845294,-500.0,0.00016999,2]
[399632166,1766575845304,-500.0,0.00016999,2]
[399632167,1766575845314,-500.0,0.00016999,2]
[399632168,1766575845324,-106.43749041,0.00016999,2]
[399632170,1766575845550,-206.68023,0.00016644,2]
[399632171,1766575845561,-393.56250959,0.00016999,2]
[399632172,1766575845571,-2205.52274439,0.00016999,3]
[399632173,1766575845824,-151.0,0.00015766,2]
[399632174,1766575845837,-77935.17446178,0.00016999,3]
[399632175,1766575845847,-300.0,0.00016999,2]
[399632176,1766575845857,-666.0,0.00016999,2]
[399632177,1766575845867,-500.0,0.00016999,2]
[399632178,1766575845877,-500.0,0.00016999,2]
[399632179,1766575845887,-500.0,0.00016999,2]
[399632180,1766575845897,-500.0,0.00016999,2]
[399632181,1766575845908,-500.0,0.00016999,2]
[399632182,1766575845918,-500.0,0.00016999,2]
[399632183,1766575845929,-500.0,0.00016999,2]
[399632184,1766575845939,-500.0,0.00016999,2]
[399632186,1766575845950,-551.85860917,0.00016999,2]
[399632188,1766575845959,-11670.46524932,0.00016999,2]
[399632190,1766575845970,-300.0,0.00016999,2]
[399632192,1766575845981,-500.0,0.00016999,2]
[399632194,1766575845991,-500.0,0.00016999,2]
[399632196,1766575846003,-500.0,0.00016999,2]
[399632198,1766575846014,-500.0,0.00016999,2]
[399632200,1766575846024,-500.0,0.00016999,2]
[399632201,1766575846034,-500.0,0.00016999,2]
[399632202,1766575846045,-500.0,0.00016999,2]
[399632203,1766575846056,-5071.0,0.00017,2]
[399632204,1766575846066,-20194.56377348,0.00017,2]
[399632206,1766575846784,-5366.39459187,0.00017,2]
[399632207,1766575846884,-1146.35797844,0.00017,2]
[399632208,1766575847028,-206.68022999,0.00016772,2]
[399632209,1766575847038,-666.28977001,0.00017,2]
[399632210,1766575847061,-296.79337137,0.00017,2]
[399632211,1766575847141,500.0,0.00014297,2]
[399632212,1766575847188,500.0,0.00014297,2]
[399632213,1766575847236,500.0,0.00014397,2]
[399632214,1766575851077,8500.01,0.00014198,2]
[399632215,1766575851106,10000.01,0.00014198,2]
[399632216,1766575851138,10000.01,0.00014198,2]
[399632217,1766575851164,10000.01,0.00014198,2]
[399632218,1766575851192,10000.01,0.00014198,2]
[399632219,1766575851219,10000.01,0.00014198,2]
[399632220,1766575851247,10000.01,0.00014198,2]
[399632221,1766575851275,10000.01,0.00014198,2]
[399632222,1766575851303,10000.01,0.00014198,2]
[399632223,1766575851330,10000.01,0.00014198,2]
[399632224,1766575880958,242.00124092,0.00032876,120]
[399632225,1766575881924,151.0,0.00014195,2]
[399632226,1766575893334,1541.336,0.00013914,2]
[399632227,1766575893442,185.068,0.00013914,2]
[399632359,1766575927948,812.22026851,0.00014098,2]
[399632367,1766575931584,151.0,0.00014195,2]
[399632831,1766575972171,179.07318237,0.00032,120]
[399632949,1766575982454,150.0,0.00014197,2]
[399633050,1766575989562,1200.0,0.00014197,2]
[399633064,1766575990838,160.48041172,0.00032,120]
[399633112,1766575994483,151.0,0.00014195,2]
[399633128,1766575997773,211.70900995,0.00014197,2]
[399633130,1766575997821,581.06723965,0.00014197,2]
[399633131,1766575997977,500.0,0.00014197,2]
[399633138,1766575999259,208.48179988,0.00014197,2]
[399633140,1766575999309,500.0,0.00014197,2]
[399633141,1766575999351,500.0,0.00014197,2]
[399633142,1766575999402,343.57563792,0.00014197,2]
[399633143,1766575999442,500.0,0.00014197,2]
[399633145,1766575999484,760.59235978,0.00014197,2]
[399633162,1766576000683,500.0,0.00014197,2]
[399633164,1766576000723,760.59235978,0.00014197,2]
[399633165,1766576000758,292.36732453,0.00014197,2]
[399633167,1766576000780,207.63267547,0.00014197,2]
[399633169,1766576000819,500.0,0.00014197,2]
[399633170,1766576000866,354.83497091,0.00014197,2]
[399633172,1766576000910,760.59235978,0.00014197,2]
[399633174,1766576000951,458.0,0.00014197,2]
[399633176,1766576000994,500.0,0.00014197,2]
[399633178,1766576001033,760.59235978,0.00014197,2]
[399633180,1766576001088,760.59235978,0.00014197,2]
[399633181,1766576001136,500.0,0.00014197,2]
[399633183,1766576001179,760.59235978,0.00014197,2]
[399633186,1766576001239,760.59235978,0.00014197,2]
[399633188,1766576001286,401.98210018,0.00014197,2]
[399633189,1766576001325,760.59235978,0.00014197,2]
[399633191,1766576001382,760.59235978,0.00014197,2]
[399633193,1766576001423,500.0,0.00014197,2]
[399633195,1766576001462,760.59235978,0.00014197,2]
[399633197,1766576001507,492.8213752,0.00014197,2]
[399633198,1766576001532,267.77098458,0.00014197,2]
[399633201,1766576001581,760.59235978,0.00014197,2]
[399633202,1766576001625,760.59235978,0.00014197,2]
[399633204,1766576001679,760.59235978,0.00014197,2]
[399633208,1766576001781,760.59235978,0.00014197,2]
[399633210,1766576001838,760.59235978,0.00014197,2]
[399633212,1766576001882,760.59235978,0.00014197,2]
[399633213,1766576001924,760.59235978,0.00014197,2]
[399633216,1766576001978,760.59235978,0.00014197,2]
[399633218,1766576002023,760.59235978,0.00014197,2]
[399633220,1766576002075,760.59235978,0.00014197,2]
[399633222,1766576002121,760.59235978,0.00014197,2]
[399633224,1766576002175,760.59235978,0.00014197,2]
[399633226,1766576002228,605.13069806,0.00014197,2]
[399633227,1766576002255,155.46166172,0.00014197,2]
[399633229,1766576002312,760.59235978,0.00014197,2]
[399633230,1766576002356,760.59235978,0.00014197,2]
[399633231,1766576002407,760.59235978,0.00014197,2]
[399633233,1766576002460,760.59235978,0.00014197,2]
[399633235,1766576002504,760.59235978,0.00014197,2]
[399633237,1766576002550,760.59235978,0.00014197,2]
[399633239,1766576002599,760.59235978,0.00014197,2]
[399633241,1766576002644,760.59235978,0.00014197,2]
[399633242,1766576002697,760.59235978,0.00014197,2]
[399633244,1766576002742,760.59235978,0.00014197,2]
[399633245,1766576002795,760.59235978,0.00014197,2]
[399633246,1766576002846,760.59235978,0.00014197,2]
[399633247,1766576002897,717.44002092,0.00014197,2]
[399633248,1766576002923,43.15233886,0.00014197,2]
[399633249,1766576002972,760.59235978,0.00014197,2]
[399633250,1766576003018,760.59235978,0.00014197,2]
[399633251,1766576003073,760.59235978,0.00014197,2]
[399633252,1766576003121,760.59235978,0.00014197,2]
[399633253,1766576003174,760.59235978,0.00014197,2]
[399633254,1766576003238,760.59235978,0.00014197,2]
[399633255,1766576003292,760.59235978,0.00014197,2]
[399633256,1766576003364,760.59235978,0.00014197,2]
[399633257,1766576003435,760.59235978,0.00014197,2]
[399633264,1766576003817,760.59235978,0.00014197,2]
[399633266,1766576003859,760.59235978,0.00014197,2]
[399633268,1766576003899,760.59235978,0.00014197,2]
[399633270,1766576003939,760.59235978,0.00014197,2]
[399633272,1766576004004,69.156984,0.00014197,2]
[399633274,1766576004032,691.43537578,0.00014197,2]
[399633307,1766576006188,587.94621572,0.00014197,2]
[399633386,1766576012908,1488.11548653,0.00014197,2]
[399633388,1766576012951,1488.11548653,0.00014197,2]
[399633390,1766576012995,1488.11548653,0.00014197,2]
[399633391,1766576013038,1488.11548653,0.00014197,2]
[399633394,1766576013408,1488.11548653,0.00014197,2]
[399633395,1766576013454,1280.05097585,0.00014197,2]
[399633396,1766576013478,208.06451068,0.00014197,2]
[399633397,1766576013520,1488.11548653,0.00014197,2]
[399633398,1766576013576,1488.11548653,0.00014197,2]
[399633399,1766576013616,1488.11548653,0.00014197,2]
[399633400,1766576013661,1488.11548653,0.00014197,2]
[399633401,1766576013702,1488.11548653,0.00014197,2]
[399633402,1766576013755,1488.11548653,0.00014197,2]
[399633403,1766576013793,863.25257014,0.00014197,2]
[399633404,1766576013820,624.86291639,0.00014197,2]
[399633405,1766576013859,1488.11548653,0.00014197,2]
[399633406,1766576013907,1488.11548653,0.00014197,2]
[399633407,1766576013953,1488.11548653,0.00014197,2]
[399633408,1766576013991,1488.11548653,0.00014197,2]
[399633411,1766576014045,1488.11548653,0.00014197,2]
[399633413,1766576014088,1488.11548653,0.00014197,2]
[399633415,1766576014133,446.45416443,0.00014197,2]
[399633417,1766576014158,1041.6613221,0.00014197,2]
[399633489,1766576021180,500.0,0.00014197,2]
[399633490,1766576021232,267.14747971,0.00014197,2]
[399633498,1766576022100,462.34987463,0.00014197,2]
[399633558,1766576027427,7728.85132356,0.00014098,2]
[399633559,1766576027450,10000.01,0.00014098,2]
[399633560,1766576027474,10000.01,0.00014098,2]
[399633561,1766576027497,10000.01,0.00014098,2]
[399633562,1766576027520,10000.01,0.00014098,2]
[399633564,1766576027542,10000.01,0.00014098,2]
[399633756,1766576044091,-5516.93343121,0.00014098,2]
[399633758,1766576044121,-10000.01,0.00014098,2]
[399633759,1766576044142,-5206.82254523,0.00014098,2]
[399633779,1766576045069,150.0,0.00014098,2]
[399633849,1766576050576,1244.21357412,0.00014197,5]
[399634444,1766576098538,8605.79642588,0.00014098,2]
[399634445,1766576098570,10000.01,0.00014098,2]
[399634447,1766576098600,4048.02573932,0.00014098,2]
[399634448,1766576098655,5951.98426068,0.00014098,2]
[399634449,1766576098686,10000.01,0.00014098,2]
[399634450,1766576098722,227.80804666,0.00014098,2]
[399634465,1766576101322,300.0,0.00014197,2]
[399634466,1766576101373,1200.0,0.00014197,2]
[399634468,1766576101464,300.0,0.00014197,2]
[399634578,1766576113946,151.0,0.00014195,2]
[399634845,1766576156733,7821.20195334,0.00014098,2]
[399634846,1766576156762,10000.01,0.00014098,2]
[399634847,1766576156788,10000.01,0.00014098,2]
[399634848,1766576156817,10000.01,0.00014098,2]
[399634849,1766576156844,10000.01,0.00014098,2]
[399634850,1766576156876,10000.01,0.00014098,2]
[399634851,1766576156903,10000.01,0.00014098,2]
[399634852,1766576156929,10000.01,0.00014098,2]
[399634853,1766576156955,10000.01,0.00014098,2]
[399634854,1766576156979,1008.38424666,0.00014098,2]
[399634855,1766576162876,300.0,0.00014197,2]
[399634856,1766576162943,2500.0,0.00014098,2]
[399634857,1766576162984,150.0,0.00014197,2]
[399634858,1766576166404,600.0,0.00014148,2]
[399634859,1766576166508,600.0,0.00014182,2]
[399634860,1766576166620,600.0,0.00014182,2]
[399634861,1766576166731,600.0,0.00014182,2]
[399634862,1766576180743,500.0,0.00014197,2]
[399634863,1766576180801,500.0,0.00014197,2]
[399634864,1766576180851,500.0,0.00014197,2]
[399634865,1766576180911,500.0,0.00014197,2]
[399634866,1766576180962,500.0,0.00014197,2]
[399634867,1766576181014,500.0,0.00014197,2]
[399634868,1766576181095,500.0,0.00014197,2]
[399634869,1766576181143,141.62575334,0.00014197,2]
[399634870,1766576181179,358.37424666,0.00014197,2]
[399634871,1766576181229,500.0,0.00014197,2]
[399634872,1766576181290,500.0,0.00014197,2]
[399634873,1766576181347,500.0,0.00014197,2]
[399634874,1766576181397,500.0,0.00014197,2]
[399634875,1766576181453,500.0,0.00014197,2]
[399634876,1766576181517,500.0,0.00014197,2]
[399634877,1766576181561,500.0,0.00014197,2]
[399634878,1766576181617,238.09097212,0.00014197,2]
[399634879,1766576181664,500.0,0.00014197,2]
[399634880,1766576210347,810.22,7.07e-05,2]
[399634881,1766576210531,810.22,7.442e-05,2]
[399634882,1766576210731,810.22,7.814e-05,2]
[399634883,1766576210932,810.22,8.186e-05,2]
[399634884,1766576211129,810.22,8.558e-05,2]
[399634885,1766576211325,810.22,8.93e-05,2]
[399634886,1766576211365,500.0,0.00014197,2]
[399634887,1766576211408,42.22478122,0.00014197,2]
[399634888,1766576211431,401.52552233,0.00014197,2]
[399634889,1766576211522,810.22,9.303e-05,2]
[399634890,1766576211730,810.22,9.675e-05,2]
[399634891,1766576211927,810.22,0.00010047,2]
[399634892,1766576212113,810.22,0.00010419,2]
[399634893,1766576212380,810.22,0.00010791,2]
[399634894,1766576212579,810.22,0.00011163,2]
[399634895,1766576212787,810.22,0.00011535,2]
[399634896,1766576212936,710.69273499,0.00014098,2]
[399634897,1766576212995,810.22,0.00011907,2]
[399634898,1766576213190,810.22,0.00012279,2]
[399634899,1766576213373,810.22,0.00012652,2]
[399634900,1766576213557,785.59174268,0.00013024,2]
[399634901,1766576213584,24.62825732,0.00013024,2]
[399634902,1766576213746,810.22,0.00013396,2]
[399634903,1766576213957,810.22,0.00013768,2]
[399634904,1766576214146,810.22,0.0001414,2]
[399634905,1766576223325,322.56666724,0.00014098,2]
[399634906,1766576227962,162.0,0.00014197,2]
[399634907,1766576231638,151.0,0.00014198,2]
[399634908,1766576232284,151.0,0.00014198,2]
[399634909,1766576232913,151.0,0.00014198,2]
[399634910,1766576233492,151.0,0.00014198,2]
[399634911,1766576234089,151.0,0.00014198,2]
[399634912,1766576234308,519.59185884,0.00014198,2]
[399634913,1766576234359,151.0,0.00014195,2]
[399634914,1766576234716,151.0,0.00014198,2]
[399634915,1766576235315,151.0,0.00014198,2]
[399634916,1766576235928,151.0,0.00014198,2]
[399634917,1766576236525,151.0,0.00014198,2]
[399634918,1766576237161,151.0,0.00014198,2]
[399634919,1766576237879,151.0,0.00014198,2]
[399634920,1766576238354,151.0,0.00014198,2]
[399634921,1766576239856,-151.0,0.00014198,2]
[399634922,1766576239886,-151.0,0.00014198,2]
[399634923,1766576240552,-151.0,0.00014198,2]
[399634924,1766576240945,-151.0,0.00014198,2]
[399634925,1766576241071,-3369.5632166,0.00014198,2]
[399634926,1766576241089,-10000.01,0.00014198,2]
[399634927,1766576242866,-151.0,0.00014198,2]
[399634928,1766576242897,-151.0,0.00014198,2]
[399634929,1766576242926,-151.0,0.00014198,2]
[399634930,1766576242998,-9094.01,0.00014198,2]
[399634931,1766576243032,-10000.01,0.00014198,2]
[399634932,1766576243079,-10000.01,0.00014198,2]
[399634933,1766576243241,-10000.01,0.00014198,2]
[399634934,1766576243374,-10000.01,0.00014198,2]
[399634935,1766576243499,-10000.01,0.00014198,2]
[399634936,1766576243629,-151.0,0.00014198,2]
[399634937,1766576243678,-9698.01,0.00014198,2]
[399634938,1766576243724,-10000.01,0.00014198,2]
[399634941,1766576281240,300.0,0.00014197,2]
[399634942,1766576288837,1200.0,0.00014197,2]
[399634943,1766576291355,500.0,0.00032876,120]
[399634944,1766576291752,500.0,0.00032876,120]
[399634945,1766576291883,179.07318238,0.00032,120]
[399634946,1766576291972,500.0,0.00032876,120]
[399634947,1766576292275,500.0,0.00032876,120]
[399634948,1766576292508,364.71354413,0.00032876,120]
[399634949,1766576296718,183.850552,0.00014127,2]
[399634950,1766576308945,8316.159448,0.00014098,2]
[399634951,1766576308969,10000.01,0.00014098,2]
[399634952,1766576308996,10000.01,0.00014098,2]
[399634953,1766576309020,10000.01,0.00014098,2]
[399634954,1766576309042,10000.01,0.00014098,2]
[399634955,1766576309067,10000.01,0.00014098,2]
[399634956,1766576309090,1333.050452,0.00014098,2]
[399634957,1766576315020,2500.0,0.00014098,2]
[399634958,1766576343176,150.0,0.00014197,2]
[399634959,1766576353950,151.0,0.00014195,2]
[399634960,1766576358200,5865.959548,0.00014098,2]